fUST/lending_fUST_20250531
["ID","MTS","AMOUNT","RATE_DAILY","PERIOD"]
[363224931,1748629840438,-870.38,0.00017038,2]
[363224933,1748629840447,-430.0,0.00017038,2]
[363224935,1748629840457,-430.0,0.00017038,2]
[363224937,1748629840466,-430.0,0.00017038,2]
[363224939,1748629840475,-430.0,0.00017038,2]
[363224941,1748629840485,-430.0,0.00017038,2]
[363224943,1748629840494,-1216.04,0.00017038,2]
[363224945,1748629840503,-430.0,0.00017038,2]
[363224947,1748629840512,-430.0,0.00017038,2]
[363224949,1748629840522,-430.0,0.00017038,2]
[363224951,1748629840531,-168.49925752,0.00017038,2]
[363224953,1748629840540,-430.0,0.00017038,2]
[363224955,1748629840550,-430.0,0.00017038,2]
[363224957,1748629840559,-1024.56,0.00017038,2]
[363224959,1748629840569,-588.0,0.00017038,2]
[363224961,1748629840578,-430.0,0.00017038,2]
[363224963,1748629840588,-430.0,0.00017038,2]
[363224965,1748629840597,-430.0,0.00017038,2]
[363224967,1748629840610,-545.06238516,0.00017038,2]
[363224969,1748629840620,-430.0,0.00017038,2]
[363224971,1748629840629,-430.0,0.00017038,2]
[363224973,1748629840639,-432.13836233,0.00017038,2]
[363224975,1748629840649,-430.0,0.00017038,2]
[363224977,1748629840658,-430.0,0.00017038,2]
[363224979,1748629840668,-1022.2,0.00017038,2]
[363224981,1748629840679,-430.0,0.00017038,2]
[363224983,1748629840688,-430.0,0.00017038,2]
[363224985,1748629840698,-430.0,0.00017038,2]
[363224987,1748629840707,-430.0,0.00017038,2]
[363224989,1748629840717,-430.0,0.00017038,2]
[363224991,1748629840726,-1121.87,0.00017038,2]
[363224993,1748629840736,-430.0,0.00017038,2]
[363224995,1748629840745,-430.0,0.00017038,2]
[363224997,1748629840755,-430.0,0.00017038,2]
[363224999,1748629840764,-430.0,0.00017038,2]
[363225001,1748629840774,-430.0,0.00017038,2]
[363225003,1748629840783,-430.0,0.00017038,2]
[363225005,1748629840793,-430.0,0.00017038,2]
[363225007,1748629840803,-430.0,0.00017038,2]
[363225009,1748629840812,-430.0,0.00017038,2]
[363225011,1748629840822,-2431.2,0.00017038,2]
[363225013,1748629840831,-430.0,0.00017038,2]
[363225015,1748629840841,-467.02,0.00017038,2]
[363225017,1748629840850,-1096.59,0.00017038,2]
[363225019,1748629840860,-430.0,0.00017038,2]
[363225021,1748629840869,-430.0,0.00017038,2]
[363225023,1748629840878,-188.70873862,0.00017038,2]
[363225025,1748629840888,-430.0,0.00017038,2]
[363225027,1748629840896,-430.0,0.00017038,2]
[363225029,1748629840906,-430.0,0.00017038,2]
[363225032,1748629840918,-430.0,0.00017038,2]
[363225034,1748629840927,-430.0,0.00017038,2]
[363225036,1748629840937,-430.0,0.00017038,2]
[363225038,1748629840947,-430.0,0.00017038,2]
[363225040,1748629840956,-430.0,0.00017038,2]
[363225042,1748629840965,-430.0,0.00017038,2]
[363225044,1748629840975,-500.0,0.00017038,2]
[363225046,1748629840984,-213.44292413,0.00017038,2]
[363225048,1748629840993,-430.0,0.00017038,2]
[363225050,1748629841003,-430.0,0.00017038,2]
[363225052,1748629841012,-430.0,0.00017038,2]
[363225053,1748629841021,-430.0,0.00017038,2]
[363225055,1748629841031,-430.0,0.00017038,2]
[363225057,1748629841041,-430.0,0.00017038,2]
[363225059,1748629841050,-430.0,0.00017038,2]
[363225061,1748629841060,-430.0,0.00017038,2]
[363225064,1748629841070,-430.0,0.00017038,2]
[363225066,1748629841081,-1400.04,0.00017038,2]
[363225068,1748629841090,-430.0,0.00017038,2]
[363225070,1748629841100,-498.71,0.00017038,2]
[363225071,1748629841109,-430.0,0.00017038,2]
[363225073,1748629841119,-500.0,0.00017039,2]
[363225075,1748629841129,-500.0,0.00017039,2]
[363225078,1748629841138,-500.0,0.00017039,2]
[363225079,1748629841148,-500.0,0.00017039,2]
[363225082,1748629841157,-500.0,0.0001704,2]
[363225084,1748629841167,-500.0,0.0001704,2]
[363225086,1748629841177,-485.57837807,0.0001704,2]
[363225088,1748629841186,-500.0,0.0001704,2]
[363225090,1748629841195,-500.0,0.0001704,2]
[363225092,1748629841204,-500.0,0.0001704,2]
[363225093,1748629841214,-500.0,0.0001704,2]
[363225096,1748629841223,-430.0,0.00017041,2]
[363225098,1748629841234,-430.0,0.00017041,2]
[363225100,1748629841244,-430.0,0.00017041,2]
[363225101,1748629841254,-481.8741951,0.00017041,2]
[363225104,1748629841265,-430.0,0.00017041,2]
[363225106,1748629841274,-496.45444101,0.00017041,2]
[363225108,1748629841284,-430.0,0.00017041,2]
[363225110,1748629841293,-330.60566109,0.00017041,2]
[363225112,1748629841303,-400.0,0.00017041,2]
[363225114,1748629841313,-401.45197326,0.00017041,2]
[363225116,1748629841323,-398.1015585,0.00017041,2]
[363225117,1748629841333,-430.0,0.00017041,2]
[363225120,1748629841343,-430.0,0.00017041,2]
[363225122,1748629841353,-430.0,0.00017041,2]
[363225124,1748629841363,-402.13187095,0.00017041,2]
[363225125,1748629841373,-430.0,0.00017041,2]
[363225128,1748629841383,-430.0,0.00017041,2]
[363225129,1748629841393,-430.0,0.00017041,2]
[363225131,1748629841404,-430.0,0.00017041,2]
[363225134,1748629841414,-430.0,0.00017041,2]
[363225136,1748629841424,-430.0,0.00017041,2]
[363225138,1748629841434,-430.0,0.00017041,2]
[363225140,1748629841443,-290.35,0.00017041,2]
[363225142,1748629841453,-430.0,0.00017041,2]
[363225144,1748629841463,-430.0,0.00017041,2]
[363225146,1748629841473,-430.0,0.00017041,2]
[363225148,1748629841482,-430.0,0.00017041,2]
[363225150,1748629841491,-430.0,0.00017041,2]
[363225152,1748629841501,-430.0,0.00017041,2]
[363225154,1748629841510,-430.0,0.00017041,2]
[363225156,1748629841521,-430.0,0.00017041,2]
[363225158,1748629841531,-430.0,0.00017041,2]
[363225160,1748629841540,-430.0,0.00017041,2]
[363225162,1748629841549,-500.0,0.00017041,2]
[363225164,1748629841559,-160.0,0.00017041,2]
[363225166,1748629841568,-500.0,0.00017041,2]
[363225168,1748629841578,-430.0,0.00017212,2]
[363225170,1748629841587,-439.37,0.00017212,2]
[363225172,1748629841597,-430.0,0.00017212,2]
[363225174,1748629841609,-2195.49,0.00017212,2]
[363225176,1748629841619,-430.0,0.00017212,2]
[363225178,1748629841628,-3376.47,0.00017212,2]
[363225180,1748629841638,-430.0,0.00017213,2]
[363225182,1748629841647,-430.0,0.00017213,2]
[363225184,1748629841658,-749.49,0.00017213,2]
[363225186,1748629841669,-430.0,0.00017213,2]
[363225188,1748629841680,-2180.91,0.00017213,2]
[363225190,1748629841690,-4214.89,0.00017213,2]
[363225193,1748629841700,-430.0,0.00017213,2]
[363225195,1748629841709,-3316.94,0.00017213,2]
[363225196,1748629841719,-430.0,0.00017213,2]
[363225199,1748629841728,-430.0,0.00017213,2]
[363225201,1748629841738,-925.83,0.00017213,2]
[363225203,1748629841747,-535.8,0.00017213,2]
[363225205,1748629841757,-555.19,0.00017213,2]
[363225207,1748629841766,-781.73,0.00017213,2]
[363225209,1748629841775,-553.92,0.00017213,2]
[363225211,1748629841785,-731.12,0.00017213,2]
[363225212,1748629841794,-430.0,0.00017213,2]
[363225215,1748629841806,-430.0,0.00017213,2]
[363225217,1748629841816,-430.0,0.00017213,2]
[363225219,1748629841825,-1243.25,0.00017213,2]
[363225221,1748629841838,-430.0,0.00017213,2]
[363225223,1748629841847,-430.0,0.00017213,2]
[363225225,1748629841857,-2979.18,0.00017213,2]
[363225227,1748629841866,-914.7,0.00017213,2]
[363225229,1748629841875,-640.62,0.00017213,2]
[363225231,1748629841885,-555.12374667,0.00017213,2]
[363225233,1748629841895,-3430.2,0.00017213,2]
[363225235,1748629841904,-478.96,0.00017213,2]
[363225237,1748629841913,-430.0,0.00017213,2]
[363225239,1748629841922,-430.0,0.00017213,2]
[363225241,1748629841932,-2136.8,0.00017213,2]
[363225243,1748629841942,-1367.73,0.00017213,2]
[363225258,1748629842077,-430.0,0.00017213,2]
[363225260,1748629842090,-430.0,0.00017213,2]
[363225262,1748629842100,-2333.43,0.00017213,2]
[363225264,1748629842111,-430.0,0.00017213,2]
[363225266,1748629842121,-615.05,0.00017213,2]
[363225268,1748629842131,-457.24,0.00017213,2]
[363225270,1748629842140,-745.02,0.00017213,2]
[363225272,1748629842150,-528.33,0.00017213,2]
[363225274,1748629842160,-803.39,0.00017213,2]
[363225277,1748629842171,-456.27,0.00017213,2]
[363225279,1748629842181,-430.0,0.00017213,2]
[363225281,1748629842190,-430.0,0.00017213,2]
[363225283,1748629842199,-1073.84,0.00017213,2]
[363225285,1748629842209,-756.96,0.00017214,2]
[363225287,1748629842218,-468.22,0.00017214,2]
[363225289,1748629842230,-430.0,0.00017214,2]
[363225291,1748629842239,-430.0,0.00017214,2]
[363225293,1748629842248,-503.02,0.00017214,2]
[363225295,1748629842258,-430.0,0.00017214,2]
[363225297,1748629842268,-606.09,0.00017214,2]
[363225299,1748629842278,-1865.02,0.00017214,2]
[363225301,1748629842288,-749.59,0.00017214,2]
[363225303,1748629842297,-430.0,0.00017214,2]
[363225305,1748629842307,-1546.31,0.00017214,2]
[363225307,1748629842317,-430.0,0.00017214,2]
[363225309,1748629842327,-1154.19,0.00017214,2]
[363225311,1748629842338,-870.04,0.00017214,2]
[363225313,1748629842348,-430.0,0.00017214,2]
[363225315,1748629842357,-4881.19,0.00017214,2]
[363225317,1748629842367,-430.0,0.00017214,2]
[363225319,1748629842377,-591.1,0.00017214,2]
[363225321,1748629842387,-2260.94,0.00017214,2]
[363225323,1748629842398,-430.0,0.00017312,2]
[363225325,1748629842407,-430.0,0.00017312,2]
[363225327,1748629842417,-430.0,0.00017312,2]
[363225329,1748629842426,-160.66630013,0.00017312,2]
[363225331,1748629842436,-430.0,0.00017312,2]
[363225333,1748629842446,-430.0,0.00017312,2]
[363225335,1748629842455,-438.02812103,0.00017312,2]
[363225337,1748629842464,-315.82201057,0.00017312,2]
[363225339,1748629842474,-500.0,0.00017312,2]
[363225341,1748629842483,-430.0,0.00017312,2]
[363225343,1748629842493,-4251.58,0.00017312,2]
[363225345,1748629842503,-870.38,0.00017312,2]
[363225347,1748629842512,-551.53094461,0.00017312,2]
[363225349,1748629842522,-1216.04,0.00017312,2]
[363225351,1748629842532,-315.23334353,0.00017312,2]
[363225353,1748629842541,-1024.56,0.00017312,2]
[363225355,1748629842550,-430.0,0.00017312,2]
[363225357,1748629842560,-430.0,0.00017312,2]
[363225359,1748629842569,-430.0,0.00017312,2]
[363225361,1748629842580,-1022.2,0.00017312,2]
[363225363,1748629842590,-430.0,0.00017312,2]
[363225365,1748629842601,-1121.87,0.00017312,2]
[363225367,1748629842613,-430.0,0.00017312,2]
[363225369,1748629842623,-403.12846371,0.00017312,2]
[363225371,1748629842632,-430.0,0.00017312,2]
[363225373,1748629842642,-430.0,0.00017312,2]
[363225375,1748629842653,-430.0,0.00017312,2]
[363225377,1748629842663,-430.0,0.00017312,2]
[363225379,1748629842672,-430.0,0.00017312,2]
[363225381,1748629842684,-2431.2,0.00017312,2]
[363225383,1748629842693,-430.0,0.00017312,2]
[363225385,1748629842703,-430.0,0.00017312,2]
[363225387,1748629842712,-1096.59,0.00017312,2]
[363225389,1748629842721,-430.0,0.00017312,2]
[363225391,1748629842730,-155.16922581,0.00017312,2]
[363225393,1748629842739,-500.0,0.00017312,2]
[363225395,1748629842748,-430.0,0.00017312,2]
[363225397,1748629842758,-430.0,0.00017312,2]
[363225399,1748629842767,-430.0,0.00017312,2]
[363225401,1748629842777,-430.0,0.00017312,2]
[363225403,1748629842786,-430.0,0.00017312,2]
[363225405,1748629842797,-430.0,0.00017312,2]
[363225407,1748629842806,-430.0,0.00017312,2]
[363225409,1748629842816,-1400.04,0.00017312,2]
[363225411,1748629842826,-498.71,0.00017312,2]
[363225413,1748629842837,-500.0,0.00017313,2]
[363225416,1748629842847,-500.0,0.00017313,2]
[363225419,1748629842856,-500.0,0.00017314,2]
[363225421,1748629842865,-151.0,0.00017315,2]
[363225423,1748629842875,-151.0,0.00017315,2]
[363225425,1748629842884,-151.0,0.00017315,2]
[363225427,1748629842894,-483.546376,0.00017315,2]
[363225429,1748629842904,-483.546376,0.00017315,2]
[363225431,1748629842914,-461.013874,0.00017315,2]
[363225433,1748629842924,-461.013874,0.00017315,2]
[363225435,1748629842934,-430.0,0.00017315,2]
[363225437,1748629842943,-430.0,0.00017315,2]
[363225439,1748629842952,-430.0,0.00017315,2]
[363225441,1748629842962,-361.33,0.00017315,2]
[363225443,1748629842971,-430.0,0.00017315,2]
[363225446,1748629842981,-430.0,0.00017315,2]
[363225448,1748629842991,-163.15064607,0.00017315,2]
[363225450,1748629843000,-430.0,0.00017315,2]
[363225452,1748629843010,-500.0,0.00017315,2]
[363225454,1748629843020,-420.0,0.00017408,2]
[363225455,1748629843029,-420.0,0.00017408,2]
[363225457,1748629843039,-420.0,0.00017408,2]
[363225459,1748629843048,-265.22142476,0.00017431,2]
[363225461,1748629843058,-483.546376,0.00017462,2]
[363225463,1748629843067,-483.546376,0.00017462,2]
[363225466,1748629843076,-461.013874,0.00017462,2]
[363225468,1748629843087,-461.013874,0.00017462,2]
[363225472,1748629843097,-151.0,0.00017463,2]
[363225475,1748629843108,-255.641735,0.00017463,2]
[363225478,1748629843117,-151.0,0.00017464,2]
[363225482,1748629843127,-151.0,0.00017464,2]
[363225484,1748629843136,-151.0,0.00017464,2]
[363225488,1748629843146,-483.546376,0.00017464,2]
[363225491,1748629843155,-483.546376,0.00017464,2]
[363225494,1748629843164,-461.013874,0.00017464,2]
[363225496,1748629843174,-461.013874,0.00017464,2]
[363225498,1748629843183,-430.0,0.00017486,2]
[363225500,1748629843192,-439.37,0.00017486,2]
[363225502,1748629843202,-430.0,0.00017486,2]
[363225504,1748629843211,-2195.49,0.00017486,2]
[363225507,1748629843221,-169.25895627,0.00017486,2]
[363225509,1748629843230,-3376.47,0.00017486,2]
[363225511,1748629843239,-430.0,0.00017487,2]
[363225513,1748629843249,-309.17,0.00017487,2]
[363225515,1748629843259,-749.49,0.00017487,2]
[363225517,1748629843268,-430.0,0.00017487,2]
[363225519,1748629843278,-2180.91,0.00017487,2]
[363225521,1748629843287,-4214.89,0.00017487,2]
[363225523,1748629843297,-430.0,0.00017487,2]
[363225525,1748629843307,-3316.94,0.00017487,2]
[363225527,1748629843316,-430.0,0.00017487,2]
[363225529,1748629843326,-430.0,0.00017487,2]
[363225531,1748629843337,-925.83,0.00017487,2]
[363225533,1748629843348,-535.8,0.00017487,2]
[363225535,1748629843357,-555.19,0.00017487,2]
[363225537,1748629843366,-781.73,0.00017487,2]
[363225539,1748629843375,-553.92,0.00017487,2]
[363225541,1748629843385,-731.12,0.00017487,2]
[363225543,1748629843394,-430.0,0.00017487,2]
[363225545,1748629843403,-430.0,0.00017487,2]
[363225547,1748629843413,-1243.25,0.00017487,2]
[363225549,1748629843423,-430.0,0.00017487,2]
[363225551,1748629843432,-2979.18,0.00017487,2]
[363225553,1748629843441,-914.7,0.00017487,2]
[363225555,1748629843451,-640.62,0.00017487,2]
[363225557,1748629843460,-3430.2,0.00017487,2]
[363225559,1748629843470,-478.96,0.00017487,2]
[363225561,1748629843479,-430.0,0.00017487,2]
[363225563,1748629843489,-430.0,0.00017487,2]
[363225565,1748629843498,-2136.8,0.00017487,2]
[363225567,1748629843508,-1367.73,0.00017487,2]
[363225569,1748629843517,-430.0,0.00017487,2]
[363225571,1748629843527,-2333.43,0.00017487,2]
[363225573,1748629843537,-430.0,0.00017487,2]
[363225575,1748629843546,-615.05,0.00017487,2]
[363225577,1748629843556,-745.02,0.00017487,2]
[363225579,1748629843566,-528.33,0.00017487,2]
[363225581,1748629843575,-803.39,0.00017487,2]
[363225584,1748629843597,-456.27,0.00017487,2]
[363225587,1748629843613,-430.0,0.00017487,2]
[363225589,1748629843624,-430.0,0.00017487,2]
[363225591,1748629843634,-1073.84,0.00017487,2]
[363225593,1748629843647,-756.96,0.00017488,2]
[363225595,1748629843657,-468.22,0.00017488,2]
[363225597,1748629843667,-430.0,0.00017488,2]
[363225600,1748629843677,-430.0,0.00017488,2]
[363225602,1748629843688,-503.02,0.00017488,2]
[363225604,1748629843698,-430.0,0.00017488,2]
[363225606,1748629843708,-606.09,0.00017488,2]
[363225608,1748629843718,-1865.02,0.00017488,2]
[363225610,1748629843728,-749.59,0.00017488,2]
[363225613,1748629843739,-430.0,0.00017488,2]
[363225615,1748629843749,-1546.31,0.00017488,2]
[363225617,1748629843758,-430.0,0.00017488,2]
[363225619,1748629843768,-1154.19,0.00017488,2]
[363225621,1748629843779,-870.04,0.00017488,2]
[363225623,1748629843789,-430.0,0.00017488,2]
[363225625,1748629843799,-4881.19,0.00017488,2]
[363225627,1748629843809,-430.0,0.00017488,2]
[363225629,1748629843819,-591.1,0.00017488,2]
[363225631,1748629843829,-2260.94,0.00017488,2]
[363225633,1748629843838,-1680.0,0.00017495,2]
[363225636,1748629843848,-6804.99064474,0.000175,2]
[363225638,1748629843858,-6804.99064453,0.000175,2]
[363225640,1748629843868,-6804.99064453,0.000175,2]
[363225642,1748629843878,-1077.1050109,0.00017533,2]
[363225644,1748629843888,-500.0,0.0001755,2]
[363225646,1748629843898,-500.0,0.0001755,2]
[363225648,1748629843908,-500.0,0.00017562,2]
[363225650,1748629843918,-260.19329504,0.00017586,2]
[363225652,1748629843929,-430.0,0.00017586,2]
[363225654,1748629843946,-430.0,0.00017586,2]
[363225656,1748629843956,-430.0,0.00017586,2]
[363225658,1748629843966,-500.0,0.00017586,2]
[363225660,1748629843976,-430.0,0.00017586,2]
[363225662,1748629843986,-4251.58,0.00017586,2]
[363225664,1748629843996,-870.38,0.00017586,2]
[363225666,1748629844006,-1216.04,0.00017586,2]
[363225668,1748629844015,-1024.56,0.00017586,2]
[363225670,1748629844025,-430.0,0.00017586,2]
[363225672,1748629844035,-430.0,0.00017586,2]
[363225674,1748629844046,-455.15,0.00017586,2]
[363225676,1748629844057,-1022.2,0.00017586,2]
[363225678,1748629844067,-430.0,0.00017586,2]
[363225680,1748629844079,-1121.87,0.00017586,2]
[363225682,1748629844089,-462.79877276,0.00017586,2]
[363225684,1748629844099,-430.0,0.00017586,2]
[363225686,1748629844109,-212.44666403,0.00017586,2]
[363225688,1748629844119,-430.0,0.00017586,2]
[363225690,1748629844130,-2431.2,0.00017586,2]
[363225692,1748629844140,-1096.59,0.00017586,2]
[363225694,1748629844150,-430.0,0.00017586,2]
[363225696,1748629844160,-430.0,0.00017586,2]
[363225698,1748629844170,-224.72,0.00017586,2]
[363225700,1748629844179,-1400.04,0.00017586,2]
[363225703,1748629844190,-498.71,0.00017586,2]
[363225705,1748629844199,-500.0,0.00017587,2]
[363225706,1748629844209,-151.0,0.00017588,2]
[363225707,1748629844222,-500.0,0.00017588,2]
[363225708,1748629844232,-151.0,0.00017589,2]
[363225709,1748629844241,-151.0,0.00017589,2]
[363225710,1748629844250,-151.0,0.00017589,2]
[363225711,1748629844260,-483.546376,0.00017589,2]
[363225712,1748629844269,-483.546376,0.00017589,2]
[363225713,1748629844279,-461.013874,0.00017589,2]
[363225714,1748629844288,-461.013874,0.00017589,2]
[363225715,1748629844298,-430.0,0.00017589,2]
[363225716,1748629844307,-430.0,0.00017589,2]
[363225717,1748629844316,-430.0,0.00017589,2]
[363225718,1748629844325,-430.0,0.00017589,2]
[363225719,1748629844337,-430.0,0.00017589,2]
[363225720,1748629844347,-430.0,0.00017589,2]
[363225721,1748629844356,-151.0,0.00017591,2]
[363225722,1748629844365,-500.0,0.00017639,2]
[363225723,1748629844375,-500.0,0.00017639,2]
[363225724,1748629844384,-500.0,0.00017639,2]
[363225725,1748629844393,-500.0,0.00017658,2]
[363225726,1748629844403,-6804.99064453,0.00017728,2]
[363225727,1748629844412,-241.26924694,0.00017737,2]
[363225728,1748629844422,-151.0,0.00017738,2]
[363225730,1748629844432,-151.0,0.00017738,2]
[363225732,1748629844442,-483.546376,0.00017738,2]
[363225734,1748629844451,-483.546376,0.00017738,2]
[363225736,1748629844461,-461.013874,0.00017738,2]
[363225738,1748629844470,-461.013874,0.00017738,2]
[363225740,1748629844480,-430.0,0.0001776,2]
[363225742,1748629844490,-439.37,0.0001776,2]
[363225744,1748629844500,-430.0,0.0001776,2]
[363225746,1748629844510,-2195.49,0.0001776,2]
[363225748,1748629844519,-3376.47,0.0001776,2]
[363225750,1748629844530,-1045.75348716,0.0001776,2]
[363225752,1748629844539,-500.0,0.0001776,2]
[363225754,1748629844549,-1045.75348716,0.0001776,2]
[363225756,1748629844558,-500.0,0.0001776,2]
[363225758,1748629844568,-1045.75348716,0.0001776,2]
[363225761,1748629844579,-1045.75348716,0.0001776,2]
[363225763,1748629844588,-1045.75348716,0.0001776,2]
[363225765,1748629844598,-1045.75348716,0.0001776,2]
[363225767,1748629844610,-1045.75348716,0.0001776,2]
[363225769,1748629844620,-1045.75348716,0.0001776,2]
[363225771,1748629844629,-1045.75348716,0.0001776,2]
[363225773,1748629844639,-1045.75348716,0.0001776,2]
[363225775,1748629844650,-1045.75348716,0.0001776,2]
[363225777,1748629844659,-500.0,0.0001776,2]
[363225779,1748629844668,-1045.75348716,0.0001776,2]
[363225781,1748629844681,-444.57999961,0.0001776,2]
[363225783,1748629844691,-1045.75348716,0.0001776,2]
[363225785,1748629844701,-1045.75348716,0.0001776,2]
[363225787,1748629844710,-1045.75348716,0.0001776,2]
[363225805,1748629844720,-1045.75348716,0.0001776,2]
[363225807,1748629844881,-1045.75348716,0.0001776,2]
[363225810,1748629844891,-1045.75348716,0.0001776,2]
[363225811,1748629844901,-1045.75348716,0.0001776,2]
[363225814,1748629844910,-1045.75348716,0.0001776,2]
[363225816,1748629844920,-1045.75348716,0.0001776,2]
[363225818,1748629844930,-1045.75348716,0.0001776,2]
[363225820,1748629844940,-430.0,0.00017761,2]
[363225822,1748629844950,-500.0,0.00017761,2]
[363225824,1748629844959,-749.49,0.00017761,2]
[363225826,1748629844969,-430.0,0.00017761,2]
[363225828,1748629844978,-2180.91,0.00017761,2]
[363225830,1748629844989,-4214.89,0.00017761,2]
[363225832,1748629844998,-430.0,0.00017761,2]
[363225834,1748629845008,-3316.94,0.00017761,2]
[363225836,1748629845018,-430.0,0.00017761,2]
[363225838,1748629845027,-430.0,0.00017761,2]
[363225840,1748629845037,-925.83,0.00017761,2]
[363225842,1748629845047,-535.8,0.00017761,2]
[363225844,1748629845056,-555.19,0.00017761,2]
[363225846,1748629845066,-781.73,0.00017761,2]
[363225848,1748629845075,-553.92,0.00017761,2]
[363225850,1748629845085,-731.12,0.00017761,2]
[363225852,1748629845095,-430.0,0.00017761,2]
[363225854,1748629845105,-430.0,0.00017761,2]
[363225856,1748629845115,-1243.25,0.00017761,2]
[363225858,1748629845125,-430.0,0.00017761,2]
[363225860,1748629845136,-2979.18,0.00017761,2]
[363225862,1748629845146,-914.7,0.00017761,2]
[363225864,1748629845156,-640.62,0.00017761,2]
[363225866,1748629845167,-3430.2,0.00017761,2]
[363225868,1748629845178,-478.96,0.00017761,2]
[363225870,1748629845187,-430.0,0.00017761,2]
[363225872,1748629845197,-430.0,0.00017761,2]
[363225874,1748629845206,-2136.8,0.00017761,2]
[363225876,1748629845215,-1367.73,0.00017761,2]
[363225878,1748629845225,-430.0,0.00017761,2]
[363225880,1748629845234,-2333.43,0.00017761,2]
[363225882,1748629845244,-430.0,0.00017761,2]
[363225884,1748629845253,-615.05,0.00017761,2]
[363225887,1748629845262,-745.02,0.00017761,2]
[363225888,1748629845271,-528.33,0.00017761,2]
[363225890,1748629845280,-803.39,0.00017761,2]
[363225893,1748629845290,-456.27,0.00017761,2]
[363225895,1748629845300,-430.0,0.00017761,2]
[363225897,1748629845310,-430.0,0.00017761,2]
[363225898,1748629845319,-1073.84,0.00017761,2]
[363225901,1748629845329,-756.96,0.00017762,2]
[363225902,1748629845338,-468.22,0.00017762,2]
[363225904,1748629845348,-569.06293867,0.00017762,2]
[363225906,1748629845357,-430.0,0.00017762,2]
[363225909,1748629845368,-503.02,0.00017762,2]
[363225910,1748629845377,-430.0,0.00017762,2]
[363225912,1748629845388,-606.09,0.00017762,2]
[363225915,1748629845397,-1865.02,0.00017762,2]
[363225917,1748629845407,-749.59,0.00017762,2]
[363225919,1748629845417,-430.0,0.00017762,2]
[363225921,1748629845426,-1546.31,0.00017762,2]
[363225923,1748629845435,-430.0,0.00017762,2]
[363225925,1748629845444,-1154.19,0.00017762,2]
[363225927,1748629845453,-870.04,0.00017762,2]
[363225929,1748629845462,-430.0,0.00017762,2]
[363225931,1748629845471,-4881.19,0.00017762,2]
[363225933,1748629845480,-430.0,0.00017762,2]
[363225935,1748629845490,-591.1,0.00017762,2]
[363225937,1748629845499,-2260.94,0.00017762,2]
[363225939,1748629845508,-1141.59311742,0.00017777,2]
[363225941,1748629845517,-546.12383404,0.0001786,2]
[363225943,1748629845526,-500.0,0.0001786,2]
[363225946,1748629845546,-430.0,0.0001786,2]
[363225948,1748629845556,-4251.58,0.0001786,2]
[363225950,1748629845566,-870.38,0.0001786,2]
[363225952,1748629845576,-1216.04,0.0001786,2]
[363225954,1748629845587,-1024.56,0.0001786,2]
[363225956,1748629845597,-430.0,0.0001786,2]
[363225959,1748629845610,-430.0,0.0001786,2]
[363225961,1748629845620,-1022.2,0.0001786,2]
[363225962,1748629845636,-430.0,0.0001786,2]